[Event "Czech Championship 2022"]
[Site "Usti nad Labem"]
[Date "2022.05.17"]
[Round "4.16"]
[White "Paseka, Matyas"]
[Black "Stinka, Jakub"]
[Result "0-1"]
[ECO "B85"]
[WhiteElo "2076"]
[BlackElo "2345"]
[Annotator "TA"]
[PlyCount "80"]
[EventDate "2022.05.12"]
[EventType "swiss"]
[EventCountry "CZE"]
[SourceTitle "playchess.com"]
[Source "ChessBase"]
[SourceQuality "1"]
[TimeControl "40/5400+30:1800+30"]

{[%evp 20,80,31,-9,46,-29,46,18,27,26,15,14,21,0,0,-33,-32,-167,-167,-230,-230,-230,-229,-231,-232,-220,-168,-168,-176,-202,-116,-177,-142,-159,-144,-199,-200,-192,-200,-250,-245,-247,-253,-269,-231,-269,-248,-254,-203,-245,-218,-303,-290,-317,-311,-525,-507,-519,-504,-4798,-670,-29990,-29991]} 1. e4 {[%emt 0:00:03]} c5 {[%emt 0:00:11]} 2. Nf3 {[%emt 0:00:07]} d6 {[%emt 0:00:05]} 3. d4 {[%emt 0:00:06]} cxd4 {[%emt 0:00:04]} 4. Nxd4 {[%emt 0:00:05]} Nf6 {[%emt 0:00:06]} 5. Nc3 {[%emt 0:00:06]} e6 {[%emt 0:00:03]} 6. Be2 {[%emt 0:01:25]} Be7 {[%emt 0:00:37]} 7. O-O {[%emt 0:00:18]} O-O {[%emt 0:00:12]} 8. Be3 {[%emt 0:02:08]} a6 {[%emt 0:00:50]} 9. f4 {[%emt 0:02:20]} Qc7 {[%emt 0:02:07]} 10. Bf3 {[%emt 0:04:29] 10.Kh1 is the modern continuation.} Nc6 {[%emt 0:01:56]} 11. Qe1 {[%emt 0:02:05]} Na5 {[%emt 0:06:46] B85: Sicilian Scheveningen: 6 Be2 a6, lines with early Be3.} ({Black should play} 11... Nxd4 $11 12. Bxd4 e5) 12. Rd1 {[%emt 0:05:17] [#]} ({White should try} 12. b3 $14) 12... Rb8 $146 {[%emt 0:06:08]} (12... Nc4 $11) ({Predecessor:} 12... Nc4 13. Bc1 e5 14. Nb3 b5 15. fxe5 dxe5 16. Qg3 Kh8 17. Kh1 b4 18. Nd5 Nxd5 19. exd5 Bd6 20. Qh4 a5 {½-½ (56) Altanbayar,T (2060)-Agibileg,U (2403) Ulaanbaatar 2019}) 13. Bc1 {[%emt 0:09:06]} b5 {[%emt 0:08:30] The position is equal.} 14. e5 {[%emt 0:08:54]} dxe5 {[%emt 0:01:29]} 15. fxe5 {[%emt 0:00:10]} (15. Qxe5 Bd6 16. Qe1 Bc5 $15) 15... Nd7 {[%emt 0:01:17]} 16. Bf4 {[%emt 0:00:34] Black must now prevent Qg3.} (16. Qg3 $5 {[%cal Rc1h6]}) 16... Bb7 {[%emt 0:04:33]} 17. Ne4 {[%emt 0:12:04][%cal Oe4f6] aiming for Nf6+!} Nc4 {[%emt 0:13:38]} 18. Nd6 {[%emt 0:28:18]} (18. Qg3 $15 g6 19. b3 (19. Nf6+ Bxf6 20. exf6 e5 $15) 19... Ncxe5 20. Kh1) 18... Bxf3 $1 $19 {[%emt 0:06:10]} (18... Nxd6 19. exd6 Bxd6 20. Nxe6 $1 Qb6+ 21. Kh1 Bxf4 22. Nxf8 (22. Nxf4 Nf6 $11) 22... Rxf8 23. Rxd7 $18) (18... Nxb2 19. Nxb7 Rxb7 20. Rb1 $15 (20. Bxb7 Nxd1 21. Bf3 Nc3 $17)) 19. Rxf3 {[%emt 0:03:33] [#]} (19. Nxf3 $142 Nxb2 20. Rd2) 19... Ndxe5 $1 {[%emt 0:06:13][%mdl 512]} 20. Bxe5 {[%emt 0:02:36]} Nxe5 {[%emt 0:00:44]} ({Not} 20... Bxd6 21. Bxd6 Nxd6 22. Rc3 $17) 21. Qxe5 {[%emt 0:00:50]} Bxd6 {[%emt 0:01:25]} (21... Qxd6 22. Qxd6 Bxd6 23. Nxe6 Bxh2+ 24. Kxh2 $15) 22. Qe4 {[%emt 0:01:16]} Bc5 {[%emt 0:04:35]} 23. Kh1 {[%emt 0:01:49]} Rbd8 {[%emt 0:01:17] And now ...e5 would win.} 24. Rfd3 {[%emt 0:01:22]} Be7 {[%emt 0:09:58]} (24... Bxd4 $19 25. Rxd4 {[#]} Qc4 $3 {[%mdl 512]}) 25. Qc6 {[%emt 0:06:19]} (25. Nc6 $17 Rxd3 26. Nxe7+ Qxe7 27. Qxd3) 25... Qc8 {[%emt 0:01:17]} 26. c3 {[%emt 0:01:37]} Bf6 {[%emt 0:01:06]} 27. Qe4 {[%emt 0:02:09]} (27. Qxc8 $17 Rxc8 28. Nc2) 27... Qc4 {[%emt 0:02:31]} 28. b3 {[%emt 0:00:11]} Qc5 {[%emt 0:03:11]} ({Inferior is} 28... Qd5 29. Qe2) 29. Rh3 {[%emt 0:01:58][%csl Gh3][%cal Re4h7]} h6 {[%emt 0:01:11]} 30. Rhd3 {[%emt 0:00:47]} Rd5 {[%emt 0:01:12]} 31. h3 {[%emt 0:01:33]} Qb6 {[%emt 0:03:15]} 32. c4 {[%emt 0:01:24]} bxc4 {[%emt 0:01:16]} 33. bxc4 {[%emt 0:00:03]} Ra5 {[%emt 0:00:44]} 34. Qe2 {[%emt 0:00:43]} Rc5 {[%emt 0:01:37]} 35. R3d2 {[%emt 0:01:29]} Rfc8 {[%emt 0:00:57]} 36. Rc2 {[%emt 0:00:03]} Qc7 {[%emt 0:01:07]} 37. Nxe6 $2 {[%emt 0:01:10]} (37. Nb3 Rxc4 38. Rxc4 Qxc4 39. Qxc4 Rxc4 40. Rc1) 37... fxe6 {[%emt 0:00:39]} 38. Qxe6+ {[%emt 0:00:03]} Kh8 {[%emt 0:01:44]} 39. Rd7 {[%emt 0:00:51]} (39. Re2 $142) 39... Qf4 {[%emt 0:00:48]} (39... Qg3 $142 40. Rd5 Rxd5 41. Qxc8+ Rd8) 40. Rcd2 {[%emt 0:00:36]} Re5 {[%emt 0:01:18] Weighted Error Value: White=0.95/Black=0.41} 0-1

[Event "Czech Championship 2022"]
[Site "Usti nad Labem"]
[Date "2022.05.17"]
[Round "4.17"]
[White "Vojta, Jakub"]
[Black "Brejnik, Gustav"]
[Result "0-1"]
[ECO "A14"]
[WhiteElo "2396"]
[BlackElo "2246"]
[Annotator "TA"]
[PlyCount "58"]
[EventDate "2022.05.12"]
[EventType "swiss"]
[EventCountry "CZE"]
[SourceTitle "playchess.com"]
[Source "ChessBase"]
[SourceQuality "1"]
[TimeControl "40/5400+30:1800+30"]

{[%evp 17,58,0,14,10,-3,0,4,1,0,-26,-22,-25,-22,-21,0,-37,0,-6,-4,-8,0,-9,-10,0,0,0,0,-20,-19,-31,0,-57,-58,-189,-187,-181,-60,-331,-328,-527,-526,-479,-418]} 1. c4 {[%emt 0:00:03]} Nf6 {[%emt 0:00:45]} 2. Nf3 {[%emt 0:02:50]} e6 {[%emt 1:30:45]} 3. g3 {[%emt 0:00:13]} d5 {[%emt 0:00:00]} 4. Bg2 {[%emt 0:00:06]} Be7 {[%emt 0:00:00]} 5. O-O {[%emt 0:00:05]} O-O {[%emt 0:00:00]} 6. b3 {[%emt 0:00:10]} b6 {[%emt 0:00:00]} 7. Bb2 {[%emt 0:00:13]} c5 {[%emt 0:00:00]} 8. e3 {[%emt 0:00:45]} Nc6 {[%emt 0:00:00]} 9. Nc3 {[%emt 0:00:34]} Ba6 {[%emt 0:00:00]} 10. Qe2 {[%emt 0:05:23] A14: English Opening: 1...e6 with b3 by White.} Rc8 {[%emt 0:00:00]} 11. d3 {[%emt 0:02:31]} Qd7 {[%emt 0:00:00]} 12. Rfd1 {[%emt 0:00:20] The position is equal.} Rfd8 {[%emt 0:00:00] [#]} 13. Ne1 $146 {[%emt 0:04:12]} ({Predecessor:} 13. a3 h6 14. Rab1 Bb7 15. cxd5 Nxd5 16. Nxd5 Qxd5 17. Bc3 a5 18. Qb2 Bf8 19. d4 {½-½ (19) Fier,A (2551)-Kryvoruchko,Y (2680) Sharjah 2019}) 13... d4 {[%emt 0:00:00]} 14. Ne4 {[%emt 0:02:35]} Nxe4 {[%emt 0:00:00]} 15. Bxe4 {[%emt 0:02:37]} Bb7 {[%emt 0:00:00]} 16. Nc2 {[%emt 0:08:25]} a5 {[%emt 0:00:00]} 17. exd4 {[%emt 0:03:14]} Bf6 {[%emt 0:00:00]} 18. Rab1 {[%emt 0:15:45]} cxd4 {[%emt 0:00:00]} 19. a3 {[%emt 0:02:03]} e5 {[%emt 0:00:00]} 20. Qf3 {[%emt 0:01:36]} Rb8 {[%emt 0:00:00]} 21. b4 {[%emt 0:02:39]} Ne7 {[%emt 0:00:00]} 22. b5 {[%emt 0:11:49]} Bxe4 {[%emt 0:00:00]} 23. Qxe4 {[%emt 0:00:15]} Nc8 {[%emt 0:00:00]} 24. Re1 {[%emt 0:09:58]} (24. f4 $11 Nd6 25. Qd5 exf4 26. Bxd4) 24... Nd6 $15 {[%emt 0:00:00]} 25. Qd5 {[%emt 0:00:47]} (25. Qe2 $15) 25... Qf5 $19 {[%emt 0:00:00]} 26. Rbd1 {[%emt 0:01:41][%cal Of2f4] [#]} Nb7 {[%emt 0:00:00]} (26... Rbc8 $1 $19 {[%cal Od6c4] And now ...Nxc4! would win.} 27. Ba1 g5) 27. Nxd4 $2 {[%emt 0:10:14][%mdl 8192]} Qc8 {[%emt 0:01:08]} 28. Rxe5 {[%emt 0:06:02]} ({Of course not} 28. Qc6 exd4 29. Bc1 Nc5 30. Qxc8 Rbxc8) (28. Qf3 exd4 29. Bc1) 28... Rxd5 {[%emt 0:00:13]} 29. Rxd5 {[%emt 0:00:02]} Qf8 {[%emt 0:12:09] Weighted Error Value: White=0.43/Black=0.09 (flawless)} 0-1

[Event "Czech Championship 2022"]
[Site "Usti nad Labem"]
[Date "2022.05.17"]
[Round "4.18"]
[White "Horak, Martin"]
[Black "Babula, Vlastimil jr"]
[Result "0-1"]
[ECO "B51"]
[WhiteElo "2343"]
[BlackElo "2217"]
[Annotator "TA"]
[PlyCount "114"]
[EventDate "2022.05.12"]
[EventType "swiss"]
[EventCountry "CZE"]
[SourceTitle "playchess.com"]
[Source "ChessBase"]
[SourceQuality "1"]
[TimeControl "40/5400+30:1800+30"]

{[%evp 21,114,23,27,16,13,20,27,27,31,0,20,20,32,43,34,8,3,-7,0,-12,0,-58,-50,-65,-18,-6,-6,-60,-58,-131,0,-111,-30,-125,0,0,45,49,38,-18,53,45,42,0,78,73,64,92,99,31,105,34,40,-602,-556,-556,-298,-305,-312,-316,-302,-307,-290,-300,-302,-300,-314,-346,-346,-328,-335,-364,-362,-336,-344,-416,-400,-387,-385,-382,-388,-435,-439,-408,-412,-764,-767,-672,-497,-1036,-860,-853,-647,-29998,-29999]} 1. e4 {[%emt 0:00:04]} c5 {[%emt 0:00:04]} 2. Nc3 {[%emt 0:00:06]} Nc6 {[%emt 0:00:33]} 3. Bb5 {[%emt 0:00:06]} Nd4 {[%emt 0:02:34]} 4. Nf3 {[%emt 0:00:10]} Nxb5 {[%emt 0:01:29]} 5. Nxb5 {[%emt 0:00:06]} d6 {[%emt 0:25:19]} 6. d4 {[%emt 0:00:10]} cxd4 {[%emt 0:04:18]} 7. Qxd4 {[%emt 0:00:06]} a6 {[%emt 0:05:46]} 8. Nc3 {[%emt 0:00:06]} e5 {[%emt 0:01:29]} 9. Qd3 {[%emt 0:02:04]} h6 {[%emt 0:00:21]} 10. Nd2 {[%emt 0:05:11]} Be6 {[%emt 0:01:15]} 11. Nc4 {[%emt 0:01:37]} Nf6 {[%emt 0:04:12]} 12. O-O {[%emt 0:04:28] B51: Sicilian: Moscow Variation (3 Bb5+) without 3...Bd7.} Rc8 {[%emt 0:03:08]} 13. Ne3 {[%emt 0:00:20]} Qa5 {[%emt 0:03:57]} 14. Bd2 {[%emt 0:19:07] White has an edge.} Qc5 {[%emt 0:00:47]} 15. a4 {[%emt 0:01:39]} Be7 {[%emt 0:04:54]} 16. Rfd1 {[%emt 0:07:54]} O-O {[%emt 0:00:51]} 17. Be1 {[%emt 0:01:50]} Rfd8 {[%emt 0:01:11] [#]} 18. b4 $146 {[%emt 0:00:38]} ({Predecessor:} 18. Kh1 Bf8 19. f3 Nh5 20. Ned5 Bxd5 21. Qxd5 Qxd5 22. Rxd5 g6 23. Rd2 f5 24. exf5 gxf5 {1-0 (43) Tiviakov,S (2651)-Kuderinov,K (2448) Kuala Lumpur 2014}) 18... Qc7 {[%emt 0:12:45]} (18... Qxb4 $2 19. Ncd5 Nxd5 20. Nxd5 $18 (20. Bxb4 Nxb4 21. Qd2 d5 $16)) 19. Ncd5 {[%emt 0:07:20]} Bxd5 {[%emt 0:00:22]} 20. exd5 {[%emt 0:00:06]} Nd7 {[%emt 0:04:33]} 21. c3 {[%emt 0:07:12]} (21. Ra3 $11) 21... Bg5 $15 {[%emt 0:02:11]} 22. Nf5 {[%emt 0:01:22]} Nb6 {[%emt 0:01:55]} (22... g6 $15 23. Ng3 f5) 23. h4 $11 {[%emt 0:06:54]} Bf6 {[%emt 0:00:06]} 24. a5 {[%emt 0:00:46]} (24. Qf3 $11) 24... Nc4 $15 {[%emt 0:03:00]} 25. Qf3 {[%emt 0:01:17]} (25. Rdb1 $15) 25... Kh7 {[%emt 0:01:09]} (25... g6 $1 $17 {[%cal Rg6f5]} 26. Nxh6+ Kg7) 26. Qh5 {[%emt 0:11:12] [#]} (26. h5 $11) 26... Rh8 {[%emt 0:00:12]} (26... Qd7 $1 $17) 27. Ng3 {[%emt 0:04:15]} (27. Qf3 $11 {remains equal.}) 27... Qe7 {[%emt 0:01:29]} (27... g6 $17 28. Qe2 Bxh4) 28. Qg4 $11 {[%emt 0:01:52]} g6 {[%emt 0:04:02]} 29. h5 {[%emt 0:01:02]} Bg5 {[%emt 0:03:06]} 30. Rd3 {[%emt 0:01:54]} (30. hxg6+ $14 fxg6 31. Ne4) 30... Bf4 {[%emt 0:03:58]} (30... Nb2 $1 $11 31. Rf3 Rc4 32. hxg6+ fxg6) 31. Ne4 {[%emt 0:01:08]} Rhg8 {[%emt 0:01:09]} 32. g3 {[%emt 0:04:09] Threatens to win with hxg6+.} f5 {[%emt 0:01:40]} (32... Rc7 $11 {keeps the balance.}) 33. hxg6+ $16 {[%emt 0:00:20]} Rxg6 {[%emt 0:00:01]} 34. Qxf5 {[%emt 0:00:12]} Rf8 {[%emt 0:00:07] [#]} 35. Qh5 {[%emt 0:00:35]} ({Better is} 35. Qh3 $1 $16) 35... Qf7 {[%emt 0:00:32]} (35... Nb2 $1 $14 36. Rf3 Qc7) 36. Kf1 {[%emt 0:01:25]} ({White should play} 36. Ra2 $16) 36... Nb2 $14 {[%emt 0:00:51]} 37. Rf3 {[%emt 0:00:33][%mdl 8192] This move loses the game for White.} (37. Qe2 $14 Qf5 38. Rf3 (38. gxf4 exf4 39. Rad1 Nxd3 $19)) 37... Qxd5 $19 {[%emt 0:00:19]} 38. Nd2 {[%emt 0:05:58]} Qb5+ {[%emt 0:00:12]} (38... Bxd2 $2 39. Rxf8 Bg5 40. Kg1 $18) 39. c4 {[%emt 0:01:02]} Nxc4 {[%emt 0:00:26]} 40. Kg1 {[%emt 0:00:55] [#]} Qe8 $1 {[%emt 0:01:24][%cal Og6g3] Strongly threatening ...Rxg3+!} 41. Nf1 {[%emt 0:32:22]} e4 {[%emt 0:02:30]} 42. Rc3 {[%emt 0:00:00]} Be5 {[%emt 0:04:21]} 43. Rxc4 {[%emt 0:00:00] Hoping for Rac1.} Bxa1 {[%emt 0:00:10] Active counter play!} 44. Qd5 {[%emt 0:00:00]} Qf7 {[%emt 0:00:46]} 45. Qxf7+ {[%emt 0:00:00]} Rxf7 {[%emt 0:00:01]} 46. Rxe4 {[%emt 0:00:00]} d5 {[%emt 0:00:22]} 47. Re8 {[%emt 0:00:00]} d4 {[%emt 0:00:57]} 48. Rd8 {[%emt 0:00:00]} Rc6 {[%emt 0:12:06]} 49. Bd2 {[%emt 0:00:00]} Bc3 {[%emt 0:00:29]} 50. Kg2 {[%emt 0:00:00]} Rcf6 {[%emt 0:03:24]} 51. f4 {[%emt 0:00:00]} Rc6 {[%emt 0:00:04]} 52. Kf3 {[%emt 0:00:00]} Rc4 {[%emt 0:00:22]} 53. g4 {[%emt 0:00:00]} (53. Ke2 $142) 53... Rxb4 {[%emt 0:00:19]} 54. f5 {[%emt 0:00:00]} h5 {[%emt 0:01:05]} 55. Rc8 {[%emt 0:00:00]} (55. Bf4 $142 Rb5 56. Ng3 Bxa5 57. Rxd4 Rb3+ 58. Kg2 hxg4 59. Re4) 55... hxg4+ {[%emt 0:00:22]} 56. Kxg4 {[%emt 0:00:00]} d3+ {[%emt 0:00:26]} 57. Kg5 {[%emt 0:00:00]} Bf6+ {[%emt 0:00:08] Weighted Error Value: White=0.66/Black=0.40} 0-1

[Event "Czech Championship 2022"]
[Site "Usti nad Labem"]
[Date "2022.05.17"]
[Round "4.20"]
[White "Bartos, Jan"]
[Black "Horak, Jiri"]
[Result "1/2-1/2"]
[ECO "E09"]
[WhiteElo "2125"]
[BlackElo "2161"]
[Annotator "TA"]
[PlyCount "78"]
[EventDate "2022.05.12"]
[EventType "swiss"]
[EventCountry "CZE"]
[SourceTitle "playchess.com"]
[Source "ChessBase"]
[SourceQuality "1"]
[TimeControl "40/5400+30:1800+30"]

{[%evp 21,78,36,29,18,23,39,58,52,51,58,62,16,20,10,15,0,0,0,0,4,4,1,0,0,1,0,0,0,6,0,0,0,0,0,0,0,0,-14,-14,-18,0,0,0,0,35,35,35,35,35,35,35,35,35,25,42,42,42,0,42]} 1. d4 {[%emt 0:00:03]} d5 {[%emt 0:09:13]} 2. Nf3 {[%emt 0:00:15]} Nf6 {[%emt 0:00:52]} 3. c4 {[%emt 0:00:04]} e6 {[%emt 0:00:03]} 4. g3 {[%emt 0:00:09]} c6 {[%emt 0:00:25]} 5. Bg2 {[%emt 0:00:10]} Be7 {[%emt 0:00:16]} 6. O-O {[%emt 0:00:15]} O-O {[%emt 0:00:06]} 7. Qc2 {[%emt 0:00:12]} Nbd7 {[%emt 0:00:55]} 8. Nbd2 {[%emt 0:00:09]} b6 {[%emt 0:01:00]} 9. e4 dxe4 {[%emt 0:00:36]} 10. Nxe4 {[%emt 0:00:10]} Bb7 {[%emt 0:00:59]} 11. Rd1 {[%emt 0:00:19]} Qc8 {[%emt 0:03:33]} 12. Bf4 {[%emt 0:01:25] E09: Closed Catalan: Main Line: 7 Qc2 c6 8 Nbd2.} Nxe4 {[%emt 0:00:32]} (12... c5 {with more complications.} 13. Nfg5 cxd4 14. Bd6 Bxe4 15. Nxe4 Bxd6 16. Nxd6 Qc5) 13. Qxe4 {[%emt 0:00:04]} Nf6 {[%emt 0:05:38]} 14. Qe2 {[%emt 0:05:35] White is slightly better.} Re8 {[%emt 0:02:47]} 15. Ne5 {[%emt 0:14:37]} c5 {[%emt 0:05:23]} 16. Bxb7 {[%emt 0:00:50] 0x0.002d0632b34fdp-1022s more active pieces.} (16. Bf3 $14 {feels stronger.}) 16... Qxb7 $11 {[%emt 0:00:08]} 17. dxc5 {[%emt 0:01:06]} Bxc5 {[%emt 0:00:42]} 18. Nd3 {[%emt 0:08:14] [#]} Be7 $146 {[%emt 0:01:31]} ({Predecessor:} 18... Bd4 19. Be5 Red8 20. Ne1 Bxe5 21. Qxe5 Rac8 22. Ng2 Qf3 23. Qe1 h5 24. Ne3 Ne4 {1-0 (49) Lopez Gonzalez,D (2238)-Tirado Parra,A (1935) Seville 2015}) 19. Ne5 {[%emt 0:00:39]} Red8 {[%emt 0:11:19]} 20. Rxd8+ {[%emt 0:02:54]} Rxd8 {[%emt 0:00:08]} 21. Rd1 {[%emt 0:00:13]} Rxd1+ {[%emt 0:00:30]} 22. Qxd1 {[%emt 0:00:05]} h6 {[%emt 0:00:57]} 23. Qf3 {[%emt 0:02:49]} (23. b3 {feels hotter.} b5 24. Qc2 bxc4 25. Qxc4 Nd5 26. Bd2) 23... Qxf3 {[%emt 0:03:22]} 24. Nxf3 {[%emt 0:00:04][%mdl 4096] Endgame KBN-KBN} Nd7 {[%emt 0:02:37]} 25. Kf1 {[%emt 0:02:03]} Bf6 {[%emt 0:02:01]} 26. b3 {[%emt 0:00:44]} e5 {[%emt 0:00:28]} 27. Be3 {[%emt 0:00:26]} Be7 {[%emt 0:00:16]} 28. Ke2 {[%emt 0:00:45]} f5 {[%emt 0:00:35]} 29. h4 {[%emt 0:02:14]} Kf7 {[%emt 0:01:38]} 30. Nd2 {[%emt 0:02:43]} g5 {[%emt 0:02:20]} 31. hxg5 {[%emt 0:00:15]} hxg5 {[%emt 0:01:10] [#] Strongly threatening ...f4.} 32. f3 {[%emt 0:00:29]} Bf6 {[%emt 0:06:17]} 33. g4 {[%emt 0:01:45]} Ke6 {[%emt 0:01:03]} 34. gxf5+ {[%emt 0:06:32]} Kxf5 {[%emt 0:01:45]} 35. Ne4 {[%emt 0:00:20]} Be7 {[%emt 0:00:20] Against Nd6+} 36. Ng3+ {[%emt 0:00:38]} Kg6 {[%emt 0:02:32]} 37. Kd3 {[%emt 0:01:05]} Bd6 {[%emt 0:02:39]} 38. Ne4 {[%emt 0:03:03][%csl LRd6,LRg5]} Be7 {[%emt 0:00:08]} 39. Ng3 {[%emt 0:00:19]} Bd6 {[%emt 0:00:07] Weighted Error Value: White=0.06 (flawless) /Black=0.04 (flawless)} 1/2-1/2

[Event "Czech Championship 2022"]
[Site "Usti nad Labem"]
[Date "2022.05.17"]
[Round "4.21"]
[White "Hladky, Tadeas"]
[Black "Sura, Jaroslav"]
[Result "1/2-1/2"]
[ECO "C85"]
[WhiteElo "2119"]
[BlackElo "2010"]
[Annotator "TA"]
[PlyCount "62"]
[EventDate "2022.05.12"]
[EventType "swiss"]
[EventCountry "CZE"]
[SourceTitle "playchess.com"]
[Source "ChessBase"]
[SourceQuality "1"]
[TimeControl "40/5400+30:1800+30"]

{[%evp 17,62,31,37,41,46,41,36,41,48,54,45,55,83,83,77,68,102,89,104,103,97,109,63,78,73,60,56,44,49,46,56,24,44,44,61,41,55,47,50,50,51,54,139,0,126,86,79]} 1. e4 {[%emt 0:00:03]} e5 {[%emt 0:00:04]} 2. Nf3 {[%emt 0:00:06]} Nc6 {[%emt 0:00:04]} 3. Bb5 {[%emt 0:00:07]} a6 {[%emt 0:00:04]} 4. Ba4 {[%emt 0:00:03]} Nf6 {[%emt 0:00:04]} 5. O-O {[%emt 0:00:05]} Be7 {[%emt 0:00:10]} 6. Bxc6 {[%emt 0:00:09]} dxc6 {[%emt 0:00:16]} 7. d3 {[%emt 0:00:05]} Bg4 {[%emt 0:01:44]} 8. h3 {[%emt 0:00:20] 8.Nbd2 is vanishing.} Bxf3 {[%emt 0:00:24]} 9. Qxf3 {[%emt 0:00:07]} Qd6 {[%emt 0:04:55] 9...Nd7 is becoming the main line.} 10. Nd2 {[%emt 0:00:52] C85: Closed Ruy Lopez: Deferred Exchange Variation.} Nd7 {[%emt 0:00:42]} 11. Nc4 {[%emt 0:00:29]} Qg6 {[%emt 0:00:58]} 12. Bd2 {[%emt 0:04:56] [#] White is slightly better.} f6 $146 {[%emt 0:00:34]} ({Predecessor:} 12... O-O 13. Ne3 Rfe8 14. Nf5 Bg5 15. Be3 c5 16. a4 a5 17. Rae1 Rad8 18. b3 b6 {1-0 (67) Colas Longares,R (2300)-Parrell Ferrer,R Valencia 1992}) 13. Qe2 {[%emt 0:01:12]} Bd6 {[%emt 0:05:02]} 14. f4 {[%emt 0:06:49]} O-O-O {[%emt 0:03:30]} 15. Nxd6+ {[%emt 0:10:32]} cxd6 {[%emt 0:00:03]} 16. Qf2 {[%emt 0:01:00]} Kb8 {[%emt 0:02:00] Against Qa7+} 17. a4 {[%emt 0:03:11]} f5 {[%emt 0:13:19]} 18. exf5 {[%emt 0:23:16]} Qxf5 {[%emt 0:00:32]} 19. fxe5 {[%emt 0:00:42]} (19. Rae1 {feels hotter.} Qg6 20. fxe5 Rhf8 21. Bf4) 19... Qxf2+ {[%emt 0:08:22]} 20. Rxf2 {[%emt 0:00:10] [#] Black must now prevent Bg5.} Nxe5 {[%emt 0:00:52]} 21. Bc3 {[%emt 0:02:04]} Rd7 {[%emt 0:11:40]} 22. Bxe5 {[%emt 0:10:27]} dxe5 $14 {[%emt 0:00:02][%mdl 4096] Endgame KRR-KRR} 23. Re1 {[%emt 0:00:07]} Re8 {[%emt 0:01:34]} 24. Rfe2 {[%emt 0:00:45]} Rd5 {[%emt 0:02:50]} 25. Re4 {[%emt 0:07:43]} c5 {[%emt 0:08:45]} 26. Rf1 {[%emt 0:07:13] Hoping for Rf7.} Re7 {[%emt 0:01:39] Against Rf7} 27. Rf8+ {[%emt 0:02:51]} Kc7 {[%emt 0:01:53]} 28. Kf2 {[%emt 0:00:05]} b5 {[%emt 0:08:09]} 29. Ke3 {[%emt 0:01:22]} b4 {[%emt 0:01:51] [#]} (29... Rd6 $14) 30. Rh4 {[%emt 0:01:20]} (30. Rc4 $1 $16) 30... h6 {[%emt 0:06:31]} (30... b3 $1 $11 {keeps the balance.}) 31. b3 {[%emt 0:00:13]} Rd4 {[%emt 0:04:21] Weighted Error Value: White=0.13 (very precise) /Black=0.20 (precise)} 1/2-1/2

[Event "Czech Championship 2022"]
[Site "Usti nad Labem"]
[Date "2022.05.17"]
[Round "4.22"]
[White "Sykora, Ondrej"]
[Black "Kozak, Milos"]
[Result "1/2-1/2"]
[ECO "B10"]
[WhiteElo "2092"]
[BlackElo "2114"]
[Annotator "TA"]
[PlyCount "64"]
[EventDate "2022.05.12"]
[EventType "swiss"]
[EventCountry "CZE"]
[SourceTitle "playchess.com"]
[Source "ChessBase"]
[SourceQuality "1"]
[TimeControl "40/5400+30:1800+30"]

{[%evp 17,64,-14,-18,-31,-5,-8,-7,-8,-10,-8,-10,-12,-6,-11,0,0,12,0,0,-3,-5,-7,0,0,0,0,0,0,0,0,0,0,0,0,6,0,8,0,9,0,13,3,18,0,12,0,19,0,13]} 1. e4 {[%emt 0:00:30] ChessBase II} c6 {[%emt 0:01:42]} 2. d3 {[%emt 0:00:04]} d5 {[%emt 0:00:21]} 3. Nd2 {[%emt 0:00:04]} e5 {[%emt 0:00:10]} 4. Ngf3 {[%emt 0:00:04]} Bd6 {[%emt 0:00:05]} 5. g3 {[%emt 0:00:05]} Nf6 {[%emt 0:00:06]} 6. Bg2 {[%emt 0:00:04]} O-O {[%emt 0:00:14]} 7. O-O {[%emt 0:00:02]} Re8 {[%emt 0:00:15]} 8. Re1 {[%emt 0:00:06]} Nbd7 {[%emt 0:00:35]} 9. c3 {[%emt 0:07:58]} a5 {[%emt 0:02:35]} 10. d4 {[%emt 0:01:25] has lost popularity (10.a4). B10: Caro-Kann: 2 d3 and 2 c4.} exd4 {[%emt 0:03:37]} 11. Nxd4 {[%emt 0:00:11] The position is equal.} dxe4 {[%emt 0:00:28]} (11... Ne5 {with more complications.} 12. exd5 Nxd5 13. Qc2 Bc7) 12. Nxe4 {[%emt 0:00:11]} Nxe4 {[%emt 0:00:26]} 13. Rxe4 {[%emt 0:03:50]} Rxe4 {[%emt 0:00:24]} 14. Bxe4 {[%emt 0:00:01][%cal Od4c6]} Nf6 {[%emt 0:00:49]} 15. Bg2 {[%emt 0:04:20]} Bg4 {[%emt 0:06:45] [#]} 16. Qb3 $146 {[%emt 0:03:24]} ({Predecessor:} 16. Qa4 Qb6 17. Qb3 Bc5 18. Qxb6 {½-½ (18) Huebner,R (2620)-Kharitonov,A (2490) Solingen 1991 EXT 2020 [ChessBase II]}) 16... Qc7 {[%emt 0:04:22]} 17. Be3 {[%emt 0:00:41]} h6 {[%emt 0:07:24]} 18. Re1 {[%emt 0:13:31]} Re8 {[%emt 0:01:34]} 19. a3 {[%emt 0:09:24]} Nd7 {[%emt 0:04:46]} 20. Qc2 {[%emt 0:06:15]} Nf6 {[%emt 0:02:49]} 21. Qc1 {[%emt 0:03:48]} Kh7 {[%emt 0:01:43]} 22. b4 {[%emt 0:03:22]} axb4 {[%emt 0:00:31]} 23. axb4 {[%emt 0:00:01]} Qd7 {[%emt 0:02:21]} 24. Nb3 {[%emt 0:02:18]} Be6 {[%emt 0:02:22]} 25. Rd1 {[%emt 0:03:32][%cal Oe3c5] Strongly threatening Bc5!} Qc7 {[%emt 0:03:27]} 26. Nd4 {[%emt 0:01:08]} Bg4 {[%emt 0:02:14]} 27. Re1 {[%emt 0:02:37]} Qc8 {[%emt 0:05:38]} 28. c4 {[%emt 0:03:09]} Be5 {[%emt 0:05:48]} 29. Nf3 {[%emt 0:03:58]} Bd6 {[%emt 0:02:11]} 30. Nd4 {[%emt 0:04:03]} Be5 {[%emt 0:00:15]} 31. Nf3 {[%emt 0:00:23]} Bd6 {[%emt 0:00:06]} 32. Nd4 {[%emt 0:00:09]} Be5 {[%emt 0:00:04] A balanced but interesting game.  Weighted Error Value: White=0.07 (flawless) /Black=0.03 (flawless)} 1/2-1/2